fUST/lending_fUST_20250301
["ID","MTS","AMOUNT","RATE_DAILY","PERIOD"]
[354884063,1740773448214,-500.0,0.00049315,120]
[354884064,1740773448224,-603.64961513,0.00049315,120]
[354884065,1740773448234,-500.0,0.00049315,120]
[354884066,1740773448244,-821.34,0.00049315,30]
[354884067,1740773448254,-500.0,0.00049315,21]
[354884068,1740773448265,-500.0,0.00049315,120]
[354884069,1740773448275,-500.0,0.00049315,120]
[354884070,1740773448284,-500.0,0.00049315,120]
[354884071,1740773448294,-500.0,0.00049315,120]
[354884072,1740773448303,-500.0,0.00049315,120]
[354884073,1740773448312,-500.0,0.00049315,120]
[354884074,1740773448324,-500.0,0.00049315,120]
[354884075,1740773448334,-3746.12,0.00049315,120]
[354884076,1740773448343,-500.0,0.00049315,120]
[354884077,1740773448353,-741.51,0.00049315,120]
[354884078,1740773448363,-4712.96,0.00049315,120]
[354884079,1740773448374,-500.0,0.00049315,120]
[354884080,1740773448383,-500.0,0.00049315,120]
[354884081,1740773448393,-500.0,0.00049315,120]
[354884082,1740773448403,-500.0,0.00049315,120]
[354884083,1740773448413,-500.0,0.00049315,120]
[354884084,1740773448423,-500.0,0.00049315,120]
[354884085,1740773448433,-506.64,0.00049315,120]
[354884086,1740773448443,-500.0,0.00049315,10]
[354884087,1740773448452,-2637.91,0.00049315,120]
[354884088,1740773448462,-151.0,0.00049315,120]
[354884089,1740773448471,-500.0,0.00049315,120]
[354884090,1740773448481,-863.68,0.00049315,120]
[354884091,1740773448490,-1281.54,0.00049315,120]
[354884092,1740773448500,-500.0,0.00049315,120]
[354884093,1740773448510,-506.84,0.00049315,120]
[354884094,1740773448519,-523.59,0.00049315,120]
[354884095,1740773448528,-500.0,0.00049315,120]
[354884096,1740773448539,-500.0,0.00049315,120]
[354884097,1740773448552,-500.0,0.00049315,120]
[354884098,1740773448562,-500.0,0.00049315,120]
[354884099,1740773448573,-3565.66,0.00049315,120]
[354884100,1740773448583,-673.32,0.00049315,120]
[354884101,1740773448593,-1549.27,0.00049315,120]
[354884102,1740773448604,-500.0,0.00049315,120]
[354884103,1740773448614,-506.62,0.00049315,120]
[354884104,1740773448625,-500.0,0.00049315,120]
[354884105,1740773448635,-1200.7,0.00049315,120]
[354884106,1740773448646,-500.0,0.00049315,120]
[354884107,1740773448656,-500.0,0.00049315,120]
[354884108,1740773448667,-3964.37,0.00049315,120]
[354884109,1740773448677,-500.0,0.00049315,120]
[354884110,1740773448687,-2388.74,0.00049315,120]
[354884111,1740773448755,-500.0,0.00049315,120]
[354884112,1740773448764,-500.0,0.00049315,120]
[354884113,1740773448774,-1022.54,0.00049315,120]
[354884114,1740773448783,-500.0,0.00049315,120]
[354884115,1740773448796,-151.0,0.00049315,120]
[354884116,1740773448811,-151.0,0.00049315,120]
[354884117,1740773448822,-151.0,0.00049315,120]
[354884118,1740773448832,-151.0,0.00049315,120]
[354884119,1740773448843,-1864.65,0.00049315,120]
[354884120,1740773448852,-500.24,0.00049315,120]
[354884121,1740773448862,-500.0,0.00049315,120]
[354884122,1740773448872,-2523.72,0.00049315,120]
[354884123,1740773448881,-500.0,0.00049315,120]
[354884124,1740773448891,-500.0,0.00049315,120]
[354884125,1740773448900,-500.0,0.00049315,120]
[354884126,1740773448910,-821.09,0.00049315,120]
[354884127,1740773448922,-2268.38,0.00049315,15]
[354884128,1740773448932,-500.0,0.00049315,120]
[354884129,1740773448943,-1653.17,0.00049315,120]
[354884130,1740773448952,-500.0,0.00049315,120]
[354884131,1740773448961,-12715.25,0.00049315,120]
[354884132,1740773448971,-1095.88,0.00049315,120]
[354884133,1740773448981,-2704.2,0.00049315,120]
[354884134,1740773448990,-3000.0,0.00049315,120]
[354884135,1740773448999,-500.0,0.00049315,120]
[354884136,1740773449009,-738.6,0.00049315,120]
[354884137,1740773449018,-239164.61,0.00049315,7]
[354884138,1740773449028,-541.33,0.00049315,120]
[354884139,1740773449037,-710.47,0.00049315,120]
[354884140,1740773449048,-500.0,0.00049315,120]
[354884141,1740773449057,-2056.01,0.00049315,120]
[354884142,1740773449066,-500.0,0.00049315,120]
[354884143,1740773449077,-500.0,0.00049315,120]
[354884144,1740773449088,-528.49,0.00049315,120]
[354884145,1740773449097,-500.0,0.00049315,120]
[354884146,1740773449108,-2827.23,0.00049315,120]
[354884147,1740773449117,-504.37632929,0.00049315,120]
[354884148,1740773449127,-500.0,0.00049315,120]
[354884149,1740773449136,-151.0,0.00049315,120]
[354884150,1740773449146,-2198.0,0.00049315,120]
[354884151,1740773449156,-151.0,0.00049315,120]
[354884152,1740773449165,-2198.0,0.00049315,120]
[354884153,1740773449174,-887.03,0.00049315,120]
[354884154,1740773449183,-2198.0,0.00049315,120]
[354884155,1740773449193,-2198.0,0.00049315,120]
[354884156,1740773449203,-2198.0,0.00049315,120]
[354884157,1740773449212,-500.0,0.00049315,120]
[354884158,1740773449221,-2198.0,0.00049315,120]
[354884159,1740773449230,-2198.0,0.00049315,120]
[354884160,1740773449240,-2198.0,0.00049315,120]
[354884161,1740773449250,-2198.0,0.00049315,120]
[354884162,1740773449259,-500.0,0.00049315,120]
[354884163,1740773449268,-4417.58,0.00049315,120]
[354884164,1740773449279,-2198.0,0.00049315,120]
[354884165,1740773449289,-2198.0,0.00049315,120]
[354884166,1740773449299,-2198.0,0.00049315,120]
[354884167,1740773449308,-557.89,0.00049315,120]
[354884168,1740773449319,-2198.0,0.00049315,120]
[354884169,1740773449328,-2198.0,0.00049315,120]
[354884170,1740773449338,-2198.0,0.00049315,120]
[354884171,1740773449347,-500.0,0.00049315,120]
[354884172,1740773449357,-19.17202528,0.00049315,120]
[354884173,1740773453726,1338.52304209,0.0003,10]
[354884174,1740773453754,3661.47695791,0.0003,10]
[354884199,1740773540660,-150.0,0.00033,30]
[354884200,1740773544283,-150.0,0.00033,30]
[354884201,1740773547847,-150.0,0.00033,30]
[354884202,1740773549213,-150.0,0.00033,30]
[354884203,1740773549466,-150.0,0.00033,30]
[354884204,1740773552635,-7.22279207,0.00033,30]
[354884205,1740773552659,-142.77720793,0.00033,30]
[354884206,1740773553760,-150.0,0.00033,30]
[354884207,1740773807074,273.00546096,0.00028,10]
[354884208,1740774017622,496.8604684,0.00029159,2]
[354884214,1740774426138,-466.59302342,0.00030617,2]
[354884215,1740774426163,-192.088418,0.00032877,2]
[354884216,1740774426186,-228.0,0.00032999,2]
[354884217,1740774426209,-207.22279207,0.00033,30]
[354884218,1740774426232,-500.0,0.00033,30]
[354884219,1740774426254,-500.0,0.00033,30]
[354884220,1740774426276,-500.0,0.00033,30]
[354884221,1740774426298,-500.0,0.00033,2]
[354884222,1740774426319,-500.0,0.00033,2]
[354884223,1740774426340,-619.39131392,0.00033,2]
[354884224,1740774426361,-500.0,0.00033,30]
[354884225,1740774426383,-500.0,0.00033,30]
[354884226,1740774426606,-799.55876053,0.00033,2]
[354884227,1740774426628,-150.0,0.00035,2]
[354884228,1740774426651,-199.9128613,0.000379,8]
[354884229,1740774426671,-289.222451,0.00037938,2]
[354884230,1740774426695,-199.9128613,0.00040122,8]
[354884231,1740774426717,-177.496321,0.0004066,120]
[354884232,1740774426740,-199.9128613,0.00042344,9]
[354884233,1740774426762,-160.0,0.00043356,2]
[354884234,1740774426782,-175.24900301,0.00044111,2]
[354884235,1740774426807,-199.9128613,0.00044567,10]
[354884236,1740774426830,-151.0,0.00045,120]
[354884237,1740774426852,-160.0,0.00046241,2]
[354884238,1740774426878,-19607.61712864,0.00046538,2]
[354884239,1740774426901,-161.85897111,0.00046548,28]
[354884240,1740774426924,-181.035,0.00046648,77]
[354884241,1740774426952,-199.9128613,0.00046789,10]
[354884242,1740774426976,-210.37021143,0.00046905,2]
[354884243,1740774426998,-151.0,0.00046957,2]
[354884244,1740774427019,-500.0,0.00046957,2]
[354884245,1740774427040,-1395.58053515,0.00047066,2]
[354884246,1740774427061,-182.59335329,0.00047215,2]
[354884247,1740774427086,-197.81,0.00047505,2]
[354884248,1740774427107,-500.0,0.00047505,2]
[354884249,1740774427128,-186.0,0.00048,90]
[354884250,1740774427151,-500.0,0.00048053,2]
[354884251,1740774427174,-161.85897111,0.00048441,28]
[354884252,1740774427197,-291.3887906,0.00048581,4]
[354884253,1740774427219,-500.0,0.00048589,120]
[354884254,1740774427241,-500.0,0.00048589,120]
[354884255,1740774427262,-500.0,0.00048589,120]
[354884256,1740774427283,-500.0,0.00048589,120]
[354884257,1740774427303,-500.0,0.00048589,120]
[354884258,1740774427327,-500.0,0.00048589,120]
[354884259,1740774427348,-500.0,0.00048589,120]
[354884260,1740774427369,-500.0,0.00048589,120]
[354884261,1740774427391,-500.0,0.00048589,120]
[354884262,1740774427412,-500.0,0.00048589,120]
[354884263,1740774427435,-500.0,0.00048589,120]
[354884264,1740774427458,-500.0,0.00048589,120]
[354884265,1740774427480,-500.0,0.00048589,120]
[354884266,1740774427502,-500.0,0.00048589,120]
[354884267,1740774427524,-500.0,0.00048601,2]
[354884268,1740774427546,-388.86494908,0.000488,120]
[354884269,1740774427567,-1000.0,0.00049,120]
[354884270,1740774427591,-199.9128613,0.00049011,11]
[354884271,1740774427614,-200.0,0.0004905,81]
[354884272,1740774427635,-150.0,0.00049135,14]
[354884273,1740774427659,-150.0,0.00049135,14]
[354884274,1740774427681,-500.0,0.00049149,2]
[354884275,1740774427702,-182.02195812,0.000492,2]
[354884276,1740774427723,-182.02195808,0.00049204,2]
[354884277,1740774427744,-182.02195808,0.00049208,2]
[354884278,1740774427765,-182.02195808,0.00049211,2]
[354884279,1740774427786,-182.02195808,0.00049215,2]
[354884280,1740774427806,-31144.59999998,0.00049215,120]
[354884281,1740774427828,-4621.68,0.00049289,10]
[354884282,1740774427849,-5546.02,0.0004929,10]
[354884283,1740774427874,-500.0,0.00049299,120]
[354884284,1740774427901,-500.0,0.00049299,120]
[354884285,1740774427925,-500.0,0.00049299,2]
[354884286,1740774427949,-500.0,0.00049299,120]
[354884287,1740774427970,-500.0,0.00049299,31]
[354884288,1740774427995,-500.0,0.00049299,120]
[354884289,1740774428020,-500.0,0.00049299,2]
[354884290,1740774428050,-500.0,0.00049299,120]
[354884291,1740774428076,-500.0,0.00049299,2]
[354884292,1740774428101,-500.0,0.00049299,120]
[354884293,1740774428123,-398.90464413,0.00049299,31]
[354884294,1740774428149,-339.21698029,0.00049299,2]
[354884295,1740774472974,1775.19174779,0.00016,2]
[354884310,1740774515719,6908.74234327,0.000145,2]
[354884311,1740774519334,17814.310526,0.00026,30]
[354884312,1740774521874,42593.60400335,0.00016487,2]
[354884342,1740774635728,-150.0,0.0004719,2]
[354884343,1740774635738,-300.0000009,0.0004798,2]
[354884344,1740774635748,-9611.3120631,0.00048398,120]
[354884345,1740774635764,-15881.25970152,0.00048398,120]
[354884357,1740774638295,-1250.0,0.00048398,120]
[354884358,1740774638310,-556.498701,0.00048398,120]
[354884359,1740774638322,-3019.37036288,0.00048398,120]
[354884383,1740774643518,-27.31679678,0.00048398,120]
[354884384,1740774643530,-8365.78741042,0.00048398,120]
[354884385,1740774643566,-3205.41023551,0.00048398,120]
[354884389,1740774646651,-837.76,0.00048398,120]
[354884423,1740775504245,-150.0,0.00032877,2]
[354884424,1740775515312,-42.088418,0.00032877,2]
[354884425,1740775590134,55171.41499657,0.0003,30]
[354884426,1740775688917,150.0,0.000279,2]
[354884427,1740775692246,-150.0,0.000329,2]
[354884429,1740775746132,-289.222452,0.00039752,2]
[354884430,1740775746153,-177.496321,0.00042371,120]
[354884445,1740775832747,-954.79773345,0.00045,120]
[354884452,1740775838679,-99045.20226655,0.00045,120]
[354884453,1740775838689,-160.0,0.00045075,2]
[354884454,1740775838699,-796.02279982,0.000451,2]
[354884455,1740775838708,-796.02279978,0.00045125,2]
[354884456,1740775838718,-796.02279978,0.0004515,2]
[354884457,1740775838727,-502.95355134,0.00045173,10]
[354884458,1740775838737,-500.0,0.00045173,3]
[354884459,1740775838747,-500.0,0.00045173,10]
[354884460,1740775838756,-500.0,0.00045173,10]
[354884461,1740775838765,-514.07238455,0.00045173,10]
[354884463,1740775838775,-500.0,0.00045173,10]
[354884465,1740775838784,-503.3306635,0.00045173,10]
[354884467,1740775838793,-276.94073079,0.00045173,10]
[354884470,1740775838803,-545.26679137,0.00045173,10]
[354884473,1740775838813,-500.0,0.00045173,10]
[354884476,1740775838823,-502.14345377,0.00045173,10]
[354884478,1740775838833,-500.0,0.00045173,10]
[354884480,1740775838842,-502.23297276,0.00045173,10]
[354884482,1740775838851,-516.52574689,0.00045173,2]
[354884484,1740775838861,-796.02279978,0.00045175,2]
[354884486,1740775838870,-160.0,0.0004519,10]
[354884487,1740775838883,-9426.85,0.0004519,10]
[354884488,1740775838893,-7855.71,0.0004519,10]
[354884489,1740775838903,-500.0,0.00045199,2]
[354884490,1740775838913,-500.0,0.00045199,120]
[354884491,1740775838923,-500.0,0.00045199,120]
[354884492,1740775838932,-500.0,0.00045199,120]
[354884493,1740775838942,-500.0,0.00045199,2]
[354884494,1740775838951,-500.0,0.00045199,120]
[354884495,1740775838959,-500.0,0.00045199,120]
[354884496,1740775838968,-500.0,0.00045199,2]
[354884497,1740775838979,-500.0,0.00045199,120]
[354884498,1740775838988,-500.0,0.00045199,120]
[354884499,1740775838997,-500.0,0.00045199,2]
[354884500,1740775839007,-244.9488,0.00045199,120]
[354884501,1740775839017,-500.0,0.00045199,2]
[354884502,1740775839027,-500.0,0.00045199,120]
[354884503,1740775839037,-500.0,0.00045199,120]
[354884504,1740775839047,-298.04894937,0.00045199,2]
[354884505,1740775839056,-500.0,0.00045199,120]
[354884506,1740775839065,-500.0,0.00045199,120]
[354884507,1740775839075,-500.0,0.00045199,2]
[354884508,1740775839084,-500.0,0.00045199,120]
[354884509,1740775839095,-500.0,0.00045199,2]
[354884510,1740775839104,-500.0,0.00045199,120]
[354884511,1740775839114,-580.09797012,0.00045199,120]
[354884512,1740775839123,-500.0,0.00045199,120]
[354884513,1740775839133,-500.0,0.00045199,120]
[354884514,1740775839143,-500.0,0.00045199,2]
[354884515,1740775839153,-500.0,0.00045199,120]
[354884516,1740775839163,-500.0,0.00045199,120]
[354884517,1740775839171,-500.0,0.00045199,2]
[354884518,1740775839182,-500.0,0.00045199,120]
[354884519,1740775839192,-500.0,0.00045199,120]
[354884520,1740775839201,-500.0,0.00045199,2]
[354884521,1740775839211,-500.0,0.00045199,120]
[354884522,1740775839220,-500.0,0.00045199,120]
[354884523,1740775839229,-500.0,0.00045199,2]
[354884524,1740775839239,-500.0,0.00045199,2]
[354884525,1740775839248,-500.0,0.00045199,120]
[354884526,1740775839258,-500.0,0.00045199,120]
[354884527,1740775839268,-500.0,0.00045199,2]
[354884528,1740775839278,-176.918,0.00045199,73]
[354884529,1740775839288,-500.0,0.00045199,2]
[354884530,1740775839298,-500.0,0.00045199,2]
[354884531,1740775839307,-500.0,0.00045199,2]
[354884532,1740775839317,-500.0,0.00045199,2]
[354884533,1740775839326,-500.0,0.00045199,2]
[354884534,1740775839336,-212.2300793,0.00045199,2]
[354884535,1740775839346,-500.0,0.00045199,120]
[354884536,1740775839359,-500.0,0.00045199,120]
[354884537,1740775839369,-500.0,0.00045199,120]
[354884538,1740775839378,-500.0,0.00045199,2]
[354884539,1740775839389,-344.21297021,0.00045199,120]
[354884540,1740775839398,-500.0,0.00045199,120]
[354884541,1740775839407,-500.0,0.00045199,31]
[354884542,1740775839417,-517.89315317,0.00045199,120]
[354884543,1740775839428,-500.0,0.00045199,120]
[354884544,1740775839438,-398.16296199,0.00045199,120]
[354884545,1740775839447,-500.0,0.00045199,2]
[354884546,1740775839457,-500.0,0.00045199,120]
[354884547,1740775839467,-500.0,0.00045199,31]
[354884548,1740775839477,-500.0,0.00045199,120]
[354884549,1740775839487,-500.0,0.00045199,120]
[354884550,1740775839497,-500.0,0.00045199,120]
[354884551,1740775839508,-500.0,0.00045199,31]
[354884552,1740775839518,-500.0,0.00045199,120]
[354884553,1740775839528,-500.0,0.00045199,120]
[354884554,1740775839537,-159.74770387,0.00045199,31]
[354884555,1740775839547,-500.0,0.00045199,120]
[354884556,1740775839556,-500.0,0.00045199,120]
[354884557,1740775839565,-500.0,0.00045199,120]
[354884558,1740775839575,-500.0,0.00045199,120]
[354884559,1740775839584,-500.0,0.00045199,120]
[354884560,1740775839595,-500.0,0.00045199,120]
[354884561,1740775839604,-500.0,0.00045199,120]
[354884562,1740775839614,-500.0,0.00045199,120]
[354884563,1740775839623,-500.0,0.00045199,120]
[354884564,1740775839632,-500.0,0.00045199,120]
[354884565,1740775839644,-500.0,0.00045199,120]
[354884566,1740775839655,-500.0,0.00045199,120]
[354884567,1740775839664,-500.0,0.00045199,120]
[354884568,1740775839674,-500.0,0.00045199,120]
[354884569,1740775839684,-500.0,0.00045199,120]
[354884570,1740775839693,-500.0,0.00045199,120]
[354884571,1740775839704,-500.0,0.00045199,120]
[354884572,1740775839714,-500.0,0.00045199,120]
[354884573,1740775839722,-500.0,0.00045199,120]
[354884574,1740775839731,-500.0,0.00045199,120]
[354884575,1740775839741,-500.0,0.00045199,120]
[354884576,1740775839750,-500.0,0.00045199,120]
[354884577,1740775839760,-500.0,0.00045199,120]
[354884578,1740775839770,-500.0,0.00045199,120]
[354884579,1740775839780,-500.0,0.00045199,120]
[354884580,1740775839789,-500.0,0.00045199,120]
[354884581,1740775839799,-500.0,0.00045199,120]
[354884582,1740775839808,-500.0,0.00045199,120]
[354884583,1740775839818,-355.40461842,0.00045199,120]
[354884584,1740775839827,-500.0,0.00045199,120]
[354884585,1740775839837,-500.0,0.00045199,120]
[354884586,1740775839847,-500.0,0.00045199,31]
[354884587,1740775839856,-500.0,0.00045199,2]
[354884588,1740775839866,-500.0,0.00045199,120]
[354884589,1740775839875,-500.0,0.00045199,120]
[354884590,1740775839886,-500.0,0.00045199,31]
[354884591,1740775839895,-500.0,0.00045199,120]
[354884592,1740775839904,-500.0,0.00045199,120]
[354884593,1740775839914,-500.0,0.00045199,31]
[354884594,1740775839923,-500.0,0.00045199,120]
[354884595,1740775839933,-500.0,0.00045199,2]
[354884596,1740775839942,-500.0,0.00045199,31]
[354884597,1740775839952,-500.0,0.00045199,120]
[354884598,1740775839962,-500.0,0.00045199,2]
[354884599,1740775839972,-500.0,0.00045199,2]
[354884600,1740775839981,-500.0,0.00045199,2]
[354884601,1740775839991,-500.0,0.00045199,2]
[354884602,1740775840000,-500.0,0.00045199,2]
[354884603,1740775840010,-500.0,0.00045199,2]
[354884604,1740775840019,-500.0,0.00045199,2]
[354884605,1740775840030,-500.0,0.00045199,120]
[354884606,1740775840039,-500.0,0.00045199,2]
[354884607,1740775840049,-500.0,0.00045199,2]
[354884608,1740775840058,-500.0,0.00045199,2]
[354884609,1740775840067,-500.0,0.00045199,2]
[354884610,1740775840077,-500.0,0.00045199,2]
[354884611,1740775840086,-500.0,0.00045199,2]
[354884612,1740775840095,-500.0,0.00045199,2]
[354884613,1740775840104,-500.0,0.00045199,120]
[354884614,1740775840113,-500.0,0.00045199,120]
[354884615,1740775840122,-500.0,0.00045199,120]
[354884616,1740775840132,-500.0,0.00045199,120]
[354884617,1740775840142,-500.0,0.00045199,120]
[354884618,1740775840151,-500.0,0.00045199,120]
[354884619,1740775840160,-500.0,0.00045199,120]
[354884620,1740775840169,-500.0,0.00045199,120]
[354884621,1740775840178,-500.0,0.00045199,120]
[354884622,1740775840187,-204.91620673,0.00045199,120]
[354884623,1740775840197,-500.0,0.00045199,120]
[354884624,1740775840206,-288.74313739,0.00045199,120]
[354884625,1740775840216,-493.09712056,0.00045199,120]
[354884626,1740775840226,-500.0,0.00045199,120]
[354884627,1740775840235,-500.0,0.00045199,31]
[354884628,1740775840244,-500.0,0.00045199,31]
[354884629,1740775840253,-500.0,0.00045199,31]
[354884630,1740775840262,-500.0,0.00045199,120]
[354884631,1740775840271,-312.07799625,0.00045199,120]
[354884632,1740775840280,-500.0,0.00045199,120]
[354884633,1740775840290,-500.0,0.00045199,120]
[354884634,1740775840299,-500.0,0.00045199,31]
[354884635,1740775840308,-500.0,0.00045199,120]
[354884637,1740775840317,-500.0,0.00045199,31]
[354884638,1740775840326,-500.0,0.00045199,120]
[354884639,1740775840335,-528.30658451,0.00045199,31]
[354884640,1740775840345,-200.0688296,0.00045199,120]
[354884641,1740775840356,-500.0,0.00045199,31]
[354884642,1740775840366,-500.0,0.00045199,31]
[354884643,1740775840375,-500.0,0.00045199,31]
[354884645,1740775840385,-500.0,0.00045199,120]
[354884647,1740775840395,-500.0,0.00045199,31]
[354884648,1740775840404,-500.0,0.00045199,120]
[354884649,1740775840414,-500.0,0.00045199,31]
[354884650,1740775840424,-500.0,0.00045199,31]
[354884651,1740775840433,-500.0,0.00045199,2]
[354884653,1740775840443,-121362.99043072,0.000452,35]
[354884655,1740775840452,-350348.93378372,0.000452,36]
[354884656,1740775840461,-200000.00000001,0.000452,3]
[354884657,1740775840471,-500.0,0.000452,10]
[354884658,1740775840480,-130095.9,0.000452,30]
[354884659,1740775840489,-8865.29,0.000452,30]
[354884660,1740775840499,-2969.96,0.000452,30]
[354884661,1740775840508,-628.67,0.000452,30]
[354884662,1740775840517,-1370.89,0.000452,30]
[354884663,1740775840527,-151.0,0.000452,29]
[354884669,1740775840725,-151.0,0.000452,26]
[354884670,1740775840735,-151.0,0.000452,23]
[354884671,1740775840745,-151.0,0.000452,28]
[354884672,1740775840754,-151.0,0.000452,22]
[354884673,1740775840764,-151.0,0.000452,22]
[354884674,1740775840773,-9475.48,0.000452,30]
[354884676,1740775840783,-162.35314214,0.000452,26]
[354884677,1740775840792,-796.02279978,0.000452,2]
[354884678,1740775840801,-151.0,0.000452,26]
[354884679,1740775840810,-151.0,0.000452,21]
[354884680,1740775840819,-151.0,0.000452,25]
[354884681,1740775840828,-151.0,0.000452,25]
[354884682,1740775840837,-151.0,0.000452,21]
[354884683,1740775840846,-151.0,0.000452,26]
[354884684,1740775840855,-500.0,0.00045225,7]
[354884685,1740775840864,-500.0,0.00045225,10]
[354884686,1740775840873,-275.7380723,0.00045225,10]
[354884687,1740775840882,-500.0,0.00045273,10]
[354884688,1740775840891,-500.0,0.00045273,10]
[354884689,1740775840900,-500.0,0.00045273,10]
[354884690,1740775840909,-500.0,0.00045273,10]
[354884691,1740775840919,-500.0,0.00045273,2]
[354884692,1740775840927,-287.34035607,0.00045273,10]
[354884693,1740775840936,-500.0,0.00045273,10]
[354884694,1740775840948,-500.0,0.00045273,10]
[354884695,1740775840959,-500.0,0.00045273,10]
[354884696,1740775840969,-500.0,0.00045273,10]
[354884697,1740775840978,-500.0,0.00045273,10]
[354884698,1740775840988,-500.0,0.00045273,10]
[354884699,1740775840998,-500.0,0.00045273,2]
[354884700,1740775841010,-500.0,0.00045273,10]
[354884701,1740775841019,-500.0,0.00045273,2]
[354884702,1740775841028,-500.0,0.00045273,10]
[354884703,1740775841038,-500.0,0.00045273,10]
[354884704,1740775841047,-500.0,0.00045273,10]
[354884705,1740775841056,-500.0,0.00045273,10]
[354884706,1740775841066,-500.0,0.00045273,10]
[354884707,1740775841075,-500.0,0.00045273,2]
[354884708,1740775841084,-500.0,0.00045273,10]
[354884709,1740775841093,-163.67444554,0.00045273,10]
[354884710,1740775841102,-500.0,0.00045273,7]
[354884711,1740775841113,-500.43913607,0.00045273,10]
[354884712,1740775841122,-500.0,0.00045273,10]
[354884713,1740775841133,-500.0,0.00045273,10]
[354884714,1740775841142,-500.0,0.00045273,10]
[354884715,1740775841151,-500.0,0.00045273,10]
[354884716,1740775841161,-500.0018478,0.00045273,10]
[354884717,1740775841170,-500.0,0.00045273,5]
[354884718,1740775841179,-500.0,0.00045273,10]
[354884719,1740775841188,-500.0,0.00045273,10]
[354884720,1740775841197,-500.0,0.00045273,10]
[354884721,1740775841208,-500.0,0.00045273,10]
[354884722,1740775841217,-162.58614606,0.00045273,10]
[354884723,1740775841226,-500.42063548,0.00045273,2]
[354884724,1740775841235,-160.0,0.00045299,30]
[354884725,1740775841245,-162.11374149,0.00045299,30]
[354884726,1740775841254,-4429819.5,0.000453,5]
[354884727,1740775841263,-151.0,0.000453,26]
[354884728,1740775841273,-151.0,0.000453,24]
[354884729,1740775841282,-151.0,0.000453,21]
[354884730,1740775841292,-151.0,0.000453,24]
[354884731,1740775841302,-151.0,0.000453,26]
[354884732,1740775841312,-151.0,0.000453,23]
[354884733,1740775841322,-151.0,0.000453,25]
[354884734,1740775841331,-151.0,0.000453,21]
[354884735,1740775841341,-2109.63149795,0.00045843,28]
[354884736,1740775841357,-204.02009258,0.000459,10]
[354884737,1740775841366,-71703.08664552,0.000461,120]
[354884738,1740775841375,-204.02009244,0.0004635,10]
[354884739,1740775841385,-9475.48,0.000465,30]
[354884740,1740775841396,-2109.63149795,0.00046588,28]
[354884741,1740775841405,-204.02009244,0.000468,10]
[354884742,1740775841415,-204.02009244,0.0004725,10]
[354884743,1740775841426,-2109.63149795,0.00047332,28]
[354884744,1740775841435,-204.02009244,0.000477,11]
[354884745,1740775841444,-19607.61712864,0.00047917,2]
[354884746,1740775841454,-215.0,0.00048,90]
[354884747,1740775841463,-151.0,0.00048055,120]
[354884748,1740775841472,-151.0,0.00048055,120]
[354884749,1740775841482,-151.0,0.00048055,120]
[354884750,1740775841491,-153.449019,0.00048055,120]